[Event "*** SCC Grand Prix: Titled Tuesday Blitz"]
[Site "Chess.com"]
[Date "2020.10.06"]
[Round "6"]
[White "GigaQuparadze"]
[Black "vanea_03"]
[Result "1-0"]
[WhiteElo "3002"]
[BlackElo "2693"]
[TimeControl "180+1"]
[EndTime "11:09:34 PDT"]
[Termination "GigaQuparadze won by resignation"]

1. e4 {[%clk 0:03:00.9]} 1... e5 {[%clk 0:02:59.1]} 2. Nf3 {[%clk 0:03:00.8]}
2... Nc6 {[%clk 0:02:59.7]} 3. Bb5 {[%clk 0:03:00.7]} 3... a6 {[%clk 0:03:00.1]}
4. Ba4 {[%clk 0:03:00.3]} 4... Nf6 {[%clk 0:03:00.6]} 5. Nc3 {[%clk 0:03:00.3]}
5... b5 {[%clk 0:02:55.2]} 6. Bb3 {[%clk 0:02:59.9]} 6... Be7 {[%clk 0:02:55.7]}
7. d3 {[%clk 0:02:56.1]} 7... d6 {[%clk 0:02:55.4]} 8. Nd5 {[%clk 0:02:56.3]}
8... Na5 {[%clk 0:02:53.9]} 9. Nxe7 {[%clk 0:02:50.4]} 9... Qxe7 {[%clk
0:02:53.8]} 10. Bg5 {[%clk 0:02:50]} 10... Nxb3 {[%clk 0:02:53.5]} 11. axb3
{[%clk 0:02:49.4]} 11... h6 {[%clk 0:02:51.6]} 12. Bh4 {[%clk 0:02:49.4]} 12...
g5 {[%clk 0:02:48.7]} 13. Bg3 {[%clk 0:02:49.5]} 13... Bb7 {[%clk 0:02:45.2]}
14. Nd2 {[%clk 0:02:47.9]} 14... d5 {[%clk 0:02:25]} 15. Qe2 {[%clk 0:02:46.4]}
15... d4 {[%clk 0:02:16.2]} 16. h4 {[%clk 0:02:41.9]} 16... O-O-O {[%clk
0:02:04.7]} 17. hxg5 {[%clk 0:02:29.4]} 17... hxg5 {[%clk 0:02:05.6]} 18. O-O-O
{[%clk 0:02:29.2]} 18... Bc6 {[%clk 0:01:47.5]} 19. Nf3 {[%clk 0:02:17.6]} 19...
Nd7 {[%clk 0:01:47.2]} 20. Qd2 {[%clk 0:02:17.5]} 20... f6 {[%clk 0:01:45.6]}
21. Qa5 {[%clk 0:02:17.1]} 21... Nb8 {[%clk 0:01:38.6]} 22. Kb1 {[%clk
0:02:11.8]} 22... Bb7 {[%clk 0:01:26.9]} 23. Qd2 {[%clk 0:01:47.1]} 23... Nc6
{[%clk 0:01:24.1]} 24. Rdg1 {[%clk 0:01:45.7]} 24... Kb8 {[%clk 0:01:23.5]} 25.
Qd1 {[%clk 0:01:45.4]} 25... Bc8 {[%clk 0:01:22.7]} 26. Rxh8 {[%clk 0:01:41.6]}
26... Rxh8 {[%clk 0:01:23.6]} 27. Rh1 {[%clk 0:01:41.8]} 27... Qg7 {[%clk
0:01:24.2]} 28. Nd2 {[%clk 0:01:41.4]} 28... Be6 {[%clk 0:01:21.1]} 29. Qg1
{[%clk 0:01:39.2]} 29... Rh6 {[%clk 0:01:18.3]} 30. Rh2 {[%clk 0:01:36.4]} 30...
Qh7 {[%clk 0:01:18.2]} 31. Rxh6 {[%clk 0:01:30.1]} 31... Qxh6 {[%clk 0:01:19.1]}
32. Nf3 {[%clk 0:01:30.4]} 32... Bg4 {[%clk 0:01:15.3]} 33. Nh2 {[%clk
0:01:29.5]} 33... Be6 {[%clk 0:01:15.8]} 34. f3 {[%clk 0:01:29.2]} 34... Kb7
{[%clk 0:01:16.1]} 35. Be1 {[%clk 0:01:24]} 35... Qh5 {[%clk 0:01:09.1]} 36. g4
{[%clk 0:01:14.4]} 36... Qh3 {[%clk 0:01:08.9]} 37. Bg3 {[%clk 0:01:11.8]} 37...
a5 {[%clk 0:01:07.4]} 38. Nf1 {[%clk 0:01:11.2]} 38... Ne7 {[%clk 0:00:57]} 39.
Nd2 {[%clk 0:00:59.9]} 39... Ng6 {[%clk 0:00:55.8]} 40. c3 {[%clk 0:00:50]}
40... c5 {[%clk 0:00:55.3]} 41. Kc2 {[%clk 0:00:47.6]} 41... Qh7 {[%clk
0:00:48.2]} 42. Qa1 {[%clk 0:00:46.3]} 42... Kb6 {[%clk 0:00:48.3]} 43. c4
{[%clk 0:00:45.8]} 43... b4 {[%clk 0:00:40]} 44. Qg1 {[%clk 0:00:44.3]} 44...
Bd7 {[%clk 0:00:40]} 45. Be1 {[%clk 0:00:43.5]} 45... Qh3 {[%clk 0:00:39.7]} 46.
Bg3 {[%clk 0:00:41.5]} 46... Nf8 {[%clk 0:00:36.5]} 47. Qf2 {[%clk 0:00:39.7]}
47... Ng6 {[%clk 0:00:36.7]} 48. Bh2 {[%clk 0:00:39.3]} 48... Be8 {[%clk
0:00:36.7]} 49. Bg1 {[%clk 0:00:38.2]} 49... Nh4 {[%clk 0:00:36.8]} 50. Bh2
{[%clk 0:00:37.4]} 50... Ng2 {[%clk 0:00:35.6]} 51. Nf1 {[%clk 0:00:33.7]} 51...
Ne3+ {[%clk 0:00:36.1]} 52. Nxe3 {[%clk 0:00:33.8]} 52... dxe3 {[%clk 0:00:37]}
53. Qe2 {[%clk 0:00:34.3]} 53... a4 {[%clk 0:00:33.7]} 54. bxa4 {[%clk
0:00:29.8]} 54... Bxa4+ {[%clk 0:00:31.3]} 55. b3 {[%clk 0:00:30.2]} 55... Bc6
{[%clk 0:00:31.3]} 56. Bg1 {[%clk 0:00:30.3]} 56... Qh7 {[%clk 0:00:25.8]} 57.
Qxe3 {[%clk 0:00:30.5]} 57... Qe7 {[%clk 0:00:26.4]} 58. Qf2 {[%clk 0:00:30.8]}
58... Qd6 {[%clk 0:00:26.4]} 59. Qh2 {[%clk 0:00:30.2]} 59... Qe7 {[%clk
0:00:26.7]} 60. Kb2 {[%clk 0:00:24.1]} 60... Be8 {[%clk 0:00:26.3]} 61. Be3
{[%clk 0:00:20.6]} 61... Kc6 {[%clk 0:00:25.5]} 62. Qh8 {[%clk 0:00:20.6]} 62...
Kb6 {[%clk 0:00:24.5]} 63. Kc2 {[%clk 0:00:20.6]} 63... Kc6 {[%clk 0:00:24.6]}
64. Qg8 {[%clk 0:00:21]} 64... Qf7 {[%clk 0:00:22.7]} 65. Qh8 {[%clk 0:00:21.4]}
65... Qe7 {[%clk 0:00:22.2]} 66. Qh6 {[%clk 0:00:21.3]} 66... Kb7 {[%clk
0:00:20.7]} 67. Qh1 {[%clk 0:00:20.5]} 67... Kb6 {[%clk 0:00:20.2]} 68. Qa1
{[%clk 0:00:20.4]} 68... Bc6 {[%clk 0:00:19.4]} 69. Qe1 {[%clk 0:00:20.3]} 69...
Qh7 {[%clk 0:00:17.9]} 70. Qxb4+ {[%clk 0:00:20.3]} 70... Kc7 {[%clk 0:00:16.4]}
71. Qa5+ {[%clk 0:00:20.8]} 71... Kd7 {[%clk 0:00:16.1]} 72. Qxc5 {[%clk
0:00:21.7]} 72... Qh2+ {[%clk 0:00:15.2]} 73. Kc3 {[%clk 0:00:22.1]} 73... Qa2
{[%clk 0:00:14.3]} 74. Qa7+ {[%clk 0:00:22.1]} 1-0

[Event "*** SCC Grand Prix: Titled Tuesday Blitz"]
[Site "Chess.com"]
[Date "2020.10.06"]
[Round "6"]
[White "doons21"]
[Black "Itk04"]
[Result "0-1"]
[WhiteElo "2593"]
[BlackElo "2472"]
[TimeControl "180+1"]
[EndTime "11:09:37 PDT"]
[Termination "Itk04 won by resignation"]

1. e4 {[%clk 0:03:00.9]} 1... e6 {[%clk 0:02:56.6]} 2. d3 {[%clk 0:03:00.3]}
2... d5 {[%clk 0:02:57.5]} 3. Nd2 {[%clk 0:03:00.5]} 3... Nc6 {[%clk 0:02:55.1]}
4. Ngf3 {[%clk 0:02:58.3]} 4... Nf6 {[%clk 0:02:50]} 5. Be2 {[%clk 0:02:51.8]}
5... e5 {[%clk 0:02:39.4]} 6. O-O {[%clk 0:02:51.4]} 6... Be7 {[%clk 0:02:34.1]}
7. Re1 {[%clk 0:02:46.7]} 7... O-O {[%clk 0:02:33]} 8. Bf1 {[%clk 0:02:46.1]}
8... d4 {[%clk 0:02:22.6]} 9. Nc4 {[%clk 0:02:39.5]} 9... Nd7 {[%clk 0:02:11.5]}
10. a4 {[%clk 0:02:35.3]} 10... f6 {[%clk 0:02:10.4]} 11. Nh4 {[%clk 0:02:25.4]}
11... Bb4 {[%clk 0:01:23]} 12. Re2 {[%clk 0:02:21.1]} 12... Nc5 {[%clk
0:01:20.8]} 13. h3 {[%clk 0:01:51.4]} 13... Be6 {[%clk 0:01:08.3]} 14. b3 {[%clk
0:01:38.1]} 14... Bc3 {[%clk 0:01:07]} 15. Rb1 {[%clk 0:01:38.1]} 15... a6
{[%clk 0:01:05.6]} 16. Ba3 {[%clk 0:01:31.9]} 16... Nb4 {[%clk 0:01:01.7]} 17.
a5 {[%clk 0:01:23.7]} 17... b5 {[%clk 0:00:51.4]} 18. axb6 {[%clk 0:01:19.8]}
18... cxb6 {[%clk 0:00:52.3]} 19. Nf5 {[%clk 0:01:09.7]} 19... b5 {[%clk
0:00:45.7]} 20. Nd2 {[%clk 0:01:10]} 20... g6 {[%clk 0:00:38.1]} 21. Nh6+ {[%clk
0:01:02.8]} 21... Kg7 {[%clk 0:00:38.1]} 22. Ng4 {[%clk 0:01:03.7]} 22... Qa5
{[%clk 0:00:30.2]} 23. Bxb4 {[%clk 0:00:54.1]} 23... Qxb4 {[%clk 0:00:29.9]} 24.
Nf3 {[%clk 0:00:55]} 24... h5 {[%clk 0:00:22.1]} 25. Ngh2 {[%clk 0:00:54]} 25...
Rac8 {[%clk 0:00:16.8]} 26. Nh4 {[%clk 0:00:46.1]} 26... Bf7 {[%clk 0:00:13.1]}
27. g3 {[%clk 0:00:39.2]} 27... Ne6 {[%clk 0:00:13.1]} 28. Bg2 {[%clk
0:00:32.9]} 28... Rc6 {[%clk 0:00:11.8]} 29. Qf1 {[%clk 0:00:33]} 29... Bd2
{[%clk 0:00:08.3]} 30. Qd1 {[%clk 0:00:27.5]} 30... Bh6 {[%clk 0:00:08.1]} 31.
Bf3 {[%clk 0:00:23.1]} 31... Rfc8 {[%clk 0:00:07.4]} 32. Bg2 {[%clk 0:00:13.7]}
32... a5 {[%clk 0:00:05.9]} 33. Bf1 {[%clk 0:00:12.9]} 33... Rc3 {[%clk
0:00:05.5]} 34. Ng2 {[%clk 0:00:13.1]} 34... Qc5 {[%clk 0:00:05.3]} 35. Rb2
{[%clk 0:00:12.6]} 35... Qa3 {[%clk 0:00:04.7]} 36. Qb1 {[%clk 0:00:11.9]} 36...
Qc5 {[%clk 0:00:03.3]} 37. Ra2 {[%clk 0:00:12.3]} 37... b4 {[%clk 0:00:02.7]}
38. Nf3 {[%clk 0:00:10.9]} 38... Nc7 {[%clk 0:00:02.6]} 39. g4 {[%clk
0:00:11.2]} 39... hxg4 {[%clk 0:00:02.6]} 40. hxg4 {[%clk 0:00:12.1]} 40... Nb5
{[%clk 0:00:03.1]} 41. g5 {[%clk 0:00:12.2]} 41... Bxg5 {[%clk 0:00:03.4]} 42.
Nxg5 {[%clk 0:00:12.3]} 42... fxg5 {[%clk 0:00:04.3]} 43. Qc1 {[%clk 0:00:12.5]}
43... Na3 {[%clk 0:00:04.3]} 44. Qxg5 {[%clk 0:00:12.8]} 44... Qd6 {[%clk
0:00:03.9]} 45. f4 {[%clk 0:00:12.3]} 45... Qf6 {[%clk 0:00:04.1]} 46. Qxe5
{[%clk 0:00:12.2]} 46... Qxe5 {[%clk 0:00:04.2]} 47. fxe5 {[%clk 0:00:13.1]}
47... Re8 {[%clk 0:00:04.6]} 48. Nf4 {[%clk 0:00:12]} 48... Rxe5 {[%clk
0:00:05.2]} 49. Bh3 {[%clk 0:00:11.6]} 49... Rg5+ {[%clk 0:00:05.5]} 50. Kh2
{[%clk 0:00:11.5]} 50... Rgc5 {[%clk 0:00:06.1]} 51. e5 {[%clk 0:00:11.2]} 51...
Rxc2 {[%clk 0:00:06.1]} 52. e6 {[%clk 0:00:11.3]} 52... Rxe2+ {[%clk 0:00:05.9]}
53. Rxe2 {[%clk 0:00:11]} 53... Be8 {[%clk 0:00:06.8]} 54. Kg3 {[%clk
0:00:10.9]} 54... Rc2 {[%clk 0:00:06.5]} 55. Re5 {[%clk 0:00:11]} 55... a4
{[%clk 0:00:05.7]} 56. bxa4 {[%clk 0:00:02.4]} 56... b3 {[%clk 0:00:06.6]} 57.
Ra5 {[%clk 0:00:02.2]} 57... b2 {[%clk 0:00:06.6]} 58. Ra7+ {[%clk 0:00:03.1]}
58... Kf6 {[%clk 0:00:06.4]} 59. Nd5+ {[%clk 0:00:03.6]} 59... Ke5 {[%clk
0:00:06.7]} 60. Nb4 {[%clk 0:00:03.3]} 60... b1=Q {[%clk 0:00:06.8]} 61. Nxc2
{[%clk 0:00:03.8]} 61... Qxc2 {[%clk 0:00:07.7]} 62. Ra5+ {[%clk 0:00:04.1]}
62... Kf6 {[%clk 0:00:07.6]} 63. Bf1 {[%clk 0:00:04.7]} 63... Qd2 {[%clk
0:00:07.5]} 64. Rd5 {[%clk 0:00:04.5]} 64... Qe3+ {[%clk 0:00:07.8]} 65. Kg2
{[%clk 0:00:05.1]} 65... Nc2 {[%clk 0:00:08.1]} 66. Rd6 {[%clk 0:00:03.5]} 66...
Ne1+ {[%clk 0:00:08.5]} 67. Kh2 {[%clk 0:00:03.4]} 67... Qf4+ {[%clk 0:00:08.5]}
68. Kg1 {[%clk 0:00:03.5]} 68... Qxd6 {[%clk 0:00:09.4]} 69. Kf2 {[%clk
0:00:03.5]} 69... Nc2 {[%clk 0:00:08.8]} 0-1

[Event "*** SCC Grand Prix: Titled Tuesday Blitz"]
[Site "Chess.com"]
[Date "2020.10.06"]
[Round "6"]
[White "Meri-Arabidze"]
[Black "rasmussvane"]
[Result "0-1"]
[WhiteElo "2709"]
[BlackElo "2910"]
[TimeControl "180+1"]
[EndTime "11:09:38 PDT"]
[Termination "rasmussvane won on time"]

1. d4 {[%clk 0:03:00.9]} 1... d5 {[%clk 0:02:59.4]} 2. c4 {[%clk 0:03:00.8]}
2... e6 {[%clk 0:02:59.7]} 3. Nc3 {[%clk 0:03:00.5]} 3... a6 {[%clk 0:03:00.2]}
4. cxd5 {[%clk 0:02:58.7]} 4... exd5 {[%clk 0:03:01.1]} 5. Bf4 {[%clk
0:02:57.7]} 5... Nf6 {[%clk 0:03:01.2]} 6. e3 {[%clk 0:02:57.5]} 6... Bd6 {[%clk
0:03:01.8]} 7. Qf3 {[%clk 0:02:52.1]} 7... Bxf4 {[%clk 0:02:53.6]} 8. Qxf4
{[%clk 0:02:51.9]} 8... O-O {[%clk 0:02:50.7]} 9. Bd3 {[%clk 0:02:50.8]} 9... c6
{[%clk 0:02:37.9]} 10. h4 {[%clk 0:02:41.8]} 10... Re8 {[%clk 0:02:36.9]} 11. h5
{[%clk 0:02:27.2]} 11... h6 {[%clk 0:02:33.8]} 12. Nge2 {[%clk 0:02:19.3]} 12...
Qe7 {[%clk 0:02:20.1]} 13. Ng3 {[%clk 0:02:13.3]} 13... c5 {[%clk 0:02:18.1]}
14. dxc5 {[%clk 0:02:04.8]} 14... Qxc5 {[%clk 0:02:17.8]} 15. O-O {[%clk
0:01:54.7]} 15... Nc6 {[%clk 0:02:17.6]} 16. Rad1 {[%clk 0:01:50.7]} 16... Be6
{[%clk 0:02:10.3]} 17. Bf5 {[%clk 0:01:46.2]} 17... Rad8 {[%clk 0:02:07.6]} 18.
a3 {[%clk 0:01:40.1]} 18... d4 {[%clk 0:02:02.3]} 19. exd4 {[%clk 0:01:28]}
19... Nxd4 {[%clk 0:01:44.7]} 20. Bxe6 {[%clk 0:01:26.1]} 20... Nxe6 {[%clk
0:01:31.3]} 21. Qf3 {[%clk 0:01:24.4]} 21... b5 {[%clk 0:01:30.6]} 22. Rxd8
{[%clk 0:01:17.8]} 22... Rxd8 {[%clk 0:01:30.9]} 23. Rd1 {[%clk 0:01:18.3]}
23... Re8 {[%clk 0:01:24.2]} 24. Qf5 {[%clk 0:01:11.6]} 24... Qc4 {[%clk
0:00:49.5]} 25. Nce4 {[%clk 0:00:26]} 25... Nxe4 {[%clk 0:00:46.7]} 26. Qxe4
{[%clk 0:00:21.9]} 26... Qb3 {[%clk 0:00:26.9]} 27. Rd2 {[%clk 0:00:17.6]} 27...
Rc8 {[%clk 0:00:21.3]} 28. Qe1 {[%clk 0:00:11.1]} 28... Rc5 {[%clk 0:00:16]} 29.
Qd1 {[%clk 0:00:10.6]} 29... Qxd1+ {[%clk 0:00:15.6]} 30. Rxd1 {[%clk
0:00:10.8]} 30... Kf8 {[%clk 0:00:14.5]} 31. f3 {[%clk 0:00:08.1]} 31... Nf4
{[%clk 0:00:14.4]} 32. Rd4 {[%clk 0:00:06.1]} 32... Nxh5 {[%clk 0:00:12.5]} 33.
Nxh5 {[%clk 0:00:06.5]} 33... Rxh5 {[%clk 0:00:13.4]} 34. Rd6 {[%clk 0:00:06.9]}
34... a5 {[%clk 0:00:13.8]} 35. Ra6 {[%clk 0:00:06.2]} 35... a4 {[%clk
0:00:13.7]} 36. Ra7 {[%clk 0:00:06.4]} 36... Rc5 {[%clk 0:00:13.6]} 37. Kh2
{[%clk 0:00:06.7]} 37... Rc2 {[%clk 0:00:13.3]} 38. Ra8+ {[%clk 0:00:02.7]}
38... Ke7 {[%clk 0:00:13.1]} 39. Ra7+ {[%clk 0:00:03.6]} 39... Kf6 {[%clk
0:00:13.5]} 40. Ra6+ {[%clk 0:00:04.3]} 40... Kg5 {[%clk 0:00:09.6]} 41. Ra7
{[%clk 0:00:04.4]} 41... Kg6 {[%clk 0:00:08.6]} 42. Rb7 {[%clk 0:00:03]} 42...
Rxb2 {[%clk 0:00:08.3]} 43. Kg3 {[%clk 0:00:03.6]} 43... Rb3 {[%clk 0:00:08.2]}
44. Kf4 {[%clk 0:00:03.9]} 44... f6 {[%clk 0:00:08.4]} 45. g4 {[%clk 0:00:03.4]}
45... Rxa3 {[%clk 0:00:08.3]} 46. Rxb5 {[%clk 0:00:03.4]} 46... Ra1 {[%clk
0:00:08.7]} 47. Ra5 {[%clk 0:00:03.6]} 47... a3 {[%clk 0:00:08.6]} 48. Ra7
{[%clk 0:00:03.7]} 48... Ra2 {[%clk 0:00:05.7]} 49. Ra6 {[%clk 0:00:03.7]} 49...
Ra1 {[%clk 0:00:05.1]} 50. Ra7 {[%clk 0:00:04]} 50... Ra2 {[%clk 0:00:02.8]} 51.
Ra6 {[%clk 0:00:03.3]} 51... Kf7 {[%clk 0:00:03.3]} 52. Ra7+ {[%clk 0:00:03.4]}
52... Kg8 {[%clk 0:00:03]} 53. Ra8+ {[%clk 0:00:03.5]} 53... Kf7 {[%clk
0:00:03.6]} 54. Ra7+ {[%clk 0:00:04.4]} 54... Ke6 {[%clk 0:00:04.2]} 55. Rxg7
{[%clk 0:00:04]} 55... Rc2 {[%clk 0:00:04.7]} 56. Ra7 {[%clk 0:00:03.1]} 56...
a2 {[%clk 0:00:05.2]} 57. Ra6+ {[%clk 0:00:03.4]} 57... Kd5 {[%clk 0:00:04.1]}
58. Kf5 {[%clk 0:00:04]} 58... Kc5 {[%clk 0:00:02.3]} 59. Kxf6 {[%clk
0:00:02.8]} 59... Kb5 {[%clk 0:00:02.8]} 60. Ra8 {[%clk 0:00:02.5]} 60... Rc6+
{[%clk 0:00:03.4]} 61. Kg7 {[%clk 0:00:01.5]} 61... Ra6 {[%clk 0:00:04.3]} 62.
Rxa6 {[%clk 0:00:01.6]} 62... Kxa6 {[%clk 0:00:05.2]} 63. Kxh6 {[%clk
0:00:02.2]} 63... a1=Q {[%clk 0:00:05.8]} 64. g5 {[%clk 0:00:03.1]} 64... Qh8+
{[%clk 0:00:06]} 65. Kg6 {[%clk 0:00:03.1]} 65... Qg8+ {[%clk 0:00:06.6]} 0-1

[Event "*** SCC Grand Prix: Titled Tuesday Blitz"]
[Site "Chess.com"]
[Date "2020.10.06"]
[Round "6"]
[White "PlotnikovPavel"]
[Black "Fh2411"]
[Result "0-1"]
[WhiteElo "2360"]
[BlackElo "2518"]
[TimeControl "180+1"]
[EndTime "11:09:42 PDT"]
[Termination "Fh2411 won by checkmate"]

1. e4 {[%clk 0:03:00.9]} 1... c5 {[%clk 0:02:58.3]} 2. Nf3 {[%clk 0:02:58.4]}
2... e6 {[%clk 0:02:58.5]} 3. d3 {[%clk 0:02:54.8]} 3... a6 {[%clk 0:02:50.4]}
4. g3 {[%clk 0:02:54.4]} 4... b5 {[%clk 0:02:50.8]} 5. Bg2 {[%clk 0:02:54.7]}
5... Bb7 {[%clk 0:02:51.3]} 6. O-O {[%clk 0:02:55.2]} 6... d6 {[%clk 0:02:51.1]}
7. c3 {[%clk 0:02:54.1]} 7... Nf6 {[%clk 0:02:50.9]} 8. Re1 {[%clk 0:02:54.3]}
8... Nbd7 {[%clk 0:02:50]} 9. Nbd2 {[%clk 0:02:52.9]} 9... Be7 {[%clk
0:02:37.9]} 10. d4 {[%clk 0:02:48.9]} 10... cxd4 {[%clk 0:02:22.7]} 11. cxd4
{[%clk 0:02:41]} 11... O-O {[%clk 0:02:21.7]} 12. b3 {[%clk 0:02:24.1]} 12...
Rc8 {[%clk 0:02:11.1]} 13. Bb2 {[%clk 0:02:18.5]} 13... Qb6 {[%clk 0:02:09.7]}
14. h4 {[%clk 0:02:08.9]} 14... h6 {[%clk 0:02:03.5]} 15. Rc1 {[%clk 0:01:36.6]}
15... Rfd8 {[%clk 0:01:57.7]} 16. Rxc8 {[%clk 0:01:32.1]} 16... Rxc8 {[%clk
0:01:56.9]} 17. Qb1 {[%clk 0:01:31.6]} 17... d5 {[%clk 0:01:12.3]} 18. e5 {[%clk
0:01:27.5]} 18... Nh7 {[%clk 0:01:11.9]} 19. Nf1 {[%clk 0:01:23.6]} 19... a5
{[%clk 0:01:07.1]} 20. h5 {[%clk 0:01:08.4]} 20... b4 {[%clk 0:01:06.2]} 21. Ne3
{[%clk 0:01:01.2]} 21... Ba6 {[%clk 0:01:04.9]} 22. Ng4 {[%clk 0:01:00.2]} 22...
Qb5 {[%clk 0:00:52.4]} 23. Bf1 {[%clk 0:00:57.8]} 23... Qb7 {[%clk 0:00:52.3]}
24. Bxa6 {[%clk 0:00:57.2]} 24... Qxa6 {[%clk 0:00:53.2]} 25. Rc1 {[%clk
0:00:57.4]} 25... Rc6 {[%clk 0:00:47.4]} 26. Rc2 {[%clk 0:00:53.6]} 26... Qc8
{[%clk 0:00:47]} 27. Rxc6 {[%clk 0:00:41.2]} 27... Qxc6 {[%clk 0:00:47.9]} 28.
Bc1 {[%clk 0:00:38.6]} 28... Bf8 {[%clk 0:00:37.7]} 29. Bd2 {[%clk 0:00:38.4]}
29... Nb6 {[%clk 0:00:31]} 30. Ne1 {[%clk 0:00:27.2]} 30... Qb5 {[%clk
0:00:25.2]} 31. Nd3 {[%clk 0:00:25.5]} 31... a4 {[%clk 0:00:24.8]} 32. Qc2
{[%clk 0:00:24.7]} 32... axb3 {[%clk 0:00:18.3]} 33. axb3 {[%clk 0:00:25.6]}
33... Nc4 {[%clk 0:00:17.7]} 34. bxc4 {[%clk 0:00:24.8]} 34... dxc4 {[%clk
0:00:18.6]} 35. Nxb4 {[%clk 0:00:24.1]} 35... Bxb4 {[%clk 0:00:12.8]} 36. Qb2
{[%clk 0:00:24.2]} 36... Qa4 {[%clk 0:00:09.3]} 37. Qxb4 {[%clk 0:00:24.3]}
37... Qd1+ {[%clk 0:00:09.3]} 38. Kg2 {[%clk 0:00:23.1]} 38... Qxg4 {[%clk
0:00:08.8]} 39. Qxc4 {[%clk 0:00:23.2]} 39... Ng5 {[%clk 0:00:07.9]} 40. Bxg5
{[%clk 0:00:21.6]} 40... Qxg5 {[%clk 0:00:08.8]} 41. Qc8+ {[%clk 0:00:20.2]}
41... Kh7 {[%clk 0:00:09.3]} 42. Qd7 {[%clk 0:00:20.2]} 42... Qxh5 {[%clk
0:00:09.1]} 43. Qc7 {[%clk 0:00:16.3]} 43... Qf5 {[%clk 0:00:08.7]} 44. Qc6
{[%clk 0:00:15.6]} 44... Qd3 {[%clk 0:00:07.5]} 45. Qf3 {[%clk 0:00:14.6]} 45...
Qxd4 {[%clk 0:00:07.3]} 46. Qxf7 {[%clk 0:00:14.8]} 46... Qxe5 {[%clk
0:00:07.8]} 47. f4 {[%clk 0:00:14.6]} 47... Qd5+ {[%clk 0:00:07.5]} 48. Kh2
{[%clk 0:00:12.1]} 48... Qf5 {[%clk 0:00:07.7]} 49. Qe7 {[%clk 0:00:11.4]} 49...
Kg6 {[%clk 0:00:07.8]} 50. Qe8+ {[%clk 0:00:10.9]} 50... Kh7 {[%clk 0:00:08]}
51. Qe7 {[%clk 0:00:10.9]} 51... Qf6 {[%clk 0:00:08.4]} 52. Qe8 {[%clk
0:00:10.2]} 52... Qb2+ {[%clk 0:00:08.1]} 53. Kh3 {[%clk 0:00:09.4]} 53... Qe2
{[%clk 0:00:08.6]} 54. Qe7 {[%clk 0:00:09]} 54... Qh5+ {[%clk 0:00:06.1]} 55.
Kg2 {[%clk 0:00:09.2]} 55... Qg4 {[%clk 0:00:06.4]} 56. Qf7 {[%clk 0:00:08.6]}
56... h5 {[%clk 0:00:06.2]} 57. Qe7 {[%clk 0:00:07.9]} 57... Kh6 {[%clk
0:00:04.3]} 58. Kf2 {[%clk 0:00:03.4]} 58... Qf5 {[%clk 0:00:04.1]} 59. Kg2
{[%clk 0:00:02.6]} 59... Qg6 {[%clk 0:00:04.1]} 60. Qh4 {[%clk 0:00:01.6]} 60...
Qf6 {[%clk 0:00:04.1]} 61. Kf2 {[%clk 0:00:02.1]} 61... Qxh4 {[%clk 0:00:04.1]}
62. gxh4 {[%clk 0:00:03]} 62... Kg6 {[%clk 0:00:04.6]} 63. Ke3 {[%clk
0:00:03.9]} 63... Kf5 {[%clk 0:00:05]} 64. Kf3 {[%clk 0:00:04.8]} 64... g6
{[%clk 0:00:05.2]} 65. Ke3 {[%clk 0:00:04.8]} 65... Kg4 {[%clk 0:00:05.8]} 66.
Ke4 {[%clk 0:00:05.4]} 66... Kxh4 {[%clk 0:00:06.5]} 67. Ke5 {[%clk 0:00:06.3]}
67... Kg4 {[%clk 0:00:07.1]} 68. Kxe6 {[%clk 0:00:06.9]} 68... Kxf4 {[%clk
0:00:07.6]} 69. Kf6 {[%clk 0:00:07.8]} 69... g5 {[%clk 0:00:08.4]} 70. Kg6
{[%clk 0:00:08.7]} 70... g4 {[%clk 0:00:09.3]} 71. Kxh5 {[%clk 0:00:09.2]} 71...
g3 {[%clk 0:00:10.2]} 72. Kh4 {[%clk 0:00:10]} 72... g2 {[%clk 0:00:11.1]} 73.
Kh3 {[%clk 0:00:10.9]} 73... g1=Q {[%clk 0:00:11.7]} 74. Kh4 {[%clk 0:00:11.8]}
74... Qg4# {[%clk 0:00:11.8]} 0-1